bitfinex/quotes_SOLUSD_20250626
["timestamp","ask_amount","ask_price","bid_price","bid_amount"]
[1750926123153,5.397805,145.36,145.34,10.0]
[1750926123331,26.04,145.37,145.34,10.0]
[1750926123332,5.85424388,145.35,145.34,10.0]
[1750926126351,5.12211132,145.36,145.35,10.0]
[1750926126558,0.04,145.37,145.35,45.78842074]
[1750926126855,0.04,145.37,145.36,40.6195696]
[1750926132240,0.04,145.37,145.36,48.18698841]
[1750926134051,0.04,145.37,145.36,74.18698841]
[1750926134650,0.04,145.37,145.36,79.75690915]
[1750926134858,0.04,145.37,145.36,80.04123229]
[1750926136440,0.04,145.37,145.36,54.04123229]
[1750926139266,0.04,145.37,145.36,53.75690915]
[1750926139564,0.04,145.37,145.36,48.18698841]
[1750926139766,0.04,145.37,145.36,53.75690915]
[1750926142662,0.04,145.37,145.36,142.45690915]
[1750926142861,0.04,145.37,145.36,141.76896199]
[1750926144047,0.04,145.37,145.36,142.05328513]
[1750926144452,0.04,145.39,145.38,54.64964886]
[1750926144660,0.04,145.39,145.38,178.08742212]
[1750926144855,0.04,145.39,145.38,177.3995696]
[1750926145171,0.04,145.39,145.38,184.27809484]
[1750926149687,0.04,145.39,145.38,184.56241798]
[1750926152783,0.04,145.39,145.38,194.56241798]
[1750926153072,0.04,145.41,145.39,18.933972]
[1750926153292,0.04,145.41,145.4,79.3273275]
[1750926155386,0.04,145.41,145.4,96.20490659]
[1750926157457,0.04,145.41,145.4,184.90490659]
[1750926157656,0.04,145.41,145.4,184.21714869]
[1750926159993,0.04,145.41,145.4,158.50147183]
[1750926160289,0.04,145.43,145.42,54.64964886]
[1750926160489,0.04,145.43,145.42,184.24723292]
[1750926160665,0.04,145.43,145.42,183.5595696]
[1750926162184,0.04,145.43,145.42,190.4362028]
[1750926167466,0.04,145.43,145.42,183.5595696]
[1750926168476,0.04,145.44,145.43,18.64964886]
[1750926168677,0.04,145.47,145.46,54.933972]
[1750926168892,0.04,145.47,145.46,148.9195696]
[1750926169188,0.04,145.47,145.46,183.5395696]
[1750926169400,0.04,145.48,145.47,28.933972]
[1750926169598,0.04,145.5,145.49,41.56992074]
[1750926169770,0.04,145.5,145.49,89.5312252]
[1750926171267,0.04,145.5,145.49,96.40454982]
[1750926172604,0.04,145.5,145.49,95.43289422]
[1750926173468,0.04,145.5,145.49,88.5595696]
[1750926174291,0.04,145.5,145.49,95.43289422]
[1750926175099,0.04,145.5,145.49,184.13289422]
[1750926175308,0.04,145.5,145.49,177.2595696]
[1750926177496,0.04,145.5,145.49,183.4195696]
[1750926178678,0.04,145.5,145.49,190.29289422]
[1750926183914,0.04,145.5,145.49,183.4195696]
[1750926186989,0.04,145.5,145.49,94.7195696]
[1750926187801,0.04,145.5,145.49,76.06992074]
[1750926188393,0.04,145.5,145.49,38.32]
[1750926189384,5.60992074,145.5,145.49,10.0]
[1750926189578,5.89424388,145.5,145.48,10.0]
[1750926189883,12.35344388,145.49,145.47,10.0]
[1750926190083,1.5599,145.47,145.46,38.32]
[1750926190284,7.12982074,145.47,145.46,38.32]
[1750926190507,1.5599,145.47,145.46,38.32]
[1750926193582,7.41414388,145.47,145.45,10.0]
[1750926193783,5.56992074,145.46,145.45,10.0]
[1750926195615,0.28432314,145.45,145.43,0.02]
[1750926195915,11.91304388,145.44,145.43,10.02]
[1750926197716,11.91304388,145.44,145.43,0.02]
[1750926197907,11.91304388,145.44,145.43,10.02]
[1750926198107,11.91304388,145.44,145.43,0.02]
[1750926206014,5.56992074,145.44,145.43,10.02]
[1750926206217,5.85424388,145.45,145.44,10.0]
[1750926209527,27.5599,145.47,145.46,10.0]
[1750926209826,33.41414388,145.47,145.46,10.0]
[1750926210827,33.41414388,145.47,145.45,10.0]
[1750926210828,0.28432314,145.46,145.45,10.0]
[1750926211016,5.85424388,145.46,145.45,10.0]
[1750926211617,5.85424388,145.46,145.43,38.36]
[1750926211924,5.56992074,145.44,145.43,38.36]
[1750926212124,5.56992074,145.44,145.43,10.02]
[1750926213818,5.85424388,145.44,145.43,10.02]
[1750926216439,5.85424388,145.44,145.43,0.02]
[1750926216617,0.28432314,145.44,145.43,10.02]
[1750926216824,5.85424388,145.44,145.43,10.02]
[1750926217032,5.85424388,145.44,145.43,0.02]
[1750926217343,5.85424388,145.44,145.43,10.02]
[1750926218738,5.85424388,145.44,145.43,0.02]
[1750926218942,5.85424388,145.44,145.43,10.02]
[1750926222728,5.85424388,145.44,145.43,0.02]
[1750926224524,11.42416462,145.44,145.43,0.02]
[1750926224825,42.03767582,145.44,145.43,0.02]
[1750926225222,0.28432314,145.39,145.37,0.02]
[1750926225441,5.56992074,145.38,145.37,0.02]
[1750926225837,5.56992074,145.38,145.37,10.02]
[1750926226551,5.56992074,145.38,145.37,0.02]
[1750926226844,5.56992074,145.38,145.37,10.02]
[1750926227046,5.85424388,145.38,145.37,10.02]
[1750926229550,26.0,145.4,145.37,10.02]
[1750926229767,26.0,145.4,145.38,10.0]
[1750926229927,26.0,145.4,145.39,10.0]
[1750926229928,31.56992074,145.4,145.39,10.0]
[1750926230127,5.56992074,145.4,145.39,10.0]
[1750926234655,31.09495092,145.42,145.41,10.0]
[1750926234844,5.56992074,145.42,145.41,10.0]
[1750926238262,10.66867695,145.42,145.41,10.0]
[1750926239260,5.56992074,145.42,145.41,10.0]
[1750926239765,31.09875621,145.43,145.41,10.0]
[1750926239948,5.56992074,145.42,145.41,10.0]
[1750926241163,10.66867695,145.42,145.41,10.0]
[1750926241464,5.56992074,145.42,145.41,10.0]
[1750926241960,6.37938548,145.46,145.44,10.0]
[1750926241961,5.09875621,145.46,145.44,10.0]
[1750926242163,5.56992074,145.45,145.44,10.0]
[1750926242368,5.85424388,145.45,145.44,10.0]
[1750926242665,10.95300009,145.45,145.44,10.0]
[1750926242846,5.85424388,145.45,145.44,10.0]
[1750926243243,10.95300009,145.45,145.43,10.0]
[1750926243442,5.56992074,145.44,145.43,10.0]
[1750926250776,0.28432314,145.45,145.43,10.0]
[1750926250961,5.56992074,145.45,145.44,10.0]
[1750926253172,10.66867695,145.46,145.44,10.0]
[1750926253400,10.95300009,145.46,145.45,10.0]
[1750926253561,5.85424388,145.46,145.45,10.0]
[1750926253764,10.95300009,145.46,145.45,10.0]
[1750926253955,5.85424388,145.46,145.45,10.0]
[1750926254277,10.95300009,145.46,145.45,10.0]
[1750926254461,5.85424388,145.46,145.45,10.0]
[1750926254661,10.95300009,145.46,145.45,10.0]
[1750926254869,5.85424388,145.46,145.45,10.0]
[1750926255051,10.95300009,145.46,145.45,10.0]
[1750926255250,5.85424388,145.46,145.45,10.0]
[1750926255451,10.95300009,145.46,145.45,10.0]
[1750926255651,5.85424388,145.46,145.45,10.0]
[1750926255878,10.95300009,145.46,145.45,10.0]
[1750926256060,5.85424388,145.46,145.45,10.0]
[1750926256374,10.95300009,145.46,145.45,10.0]
[1750926256675,5.85424388,145.46,145.45,10.0]
[1750926256874,10.95300009,145.46,145.45,10.0]
[1750926257072,5.85424388,145.46,145.45,10.0]
[1750926257277,10.95300009,145.46,145.45,10.0]
[1750926257462,5.85424388,145.46,145.45,10.0]
[1750926257662,10.95300009,145.46,145.45,10.0]
[1750926257861,5.85424388,145.46,145.45,10.0]
[1750926258073,10.95300009,145.46,145.45,10.0]
[1750926258379,5.85424388,145.46,145.45,10.0]
[1750926258675,10.95300009,145.46,145.45,10.0]
[1750926258882,0.28432314,145.45,145.44,10.0]
[1750926259174,5.85424388,145.45,145.44,10.0]
[1750926259358,5.85424388,145.45,145.43,10.0]
[1750926259561,5.56992074,145.44,145.43,10.0]
[1750926260170,5.85424388,145.44,145.43,10.0]
[1750926260675,5.85424388,145.44,145.4,16.18]
[1750926260676,0.28432314,145.43,145.4,16.18]
[1750926260864,5.56992074,145.41,145.4,16.18]
[1750926261260,5.85424388,145.41,145.4,10.0]
[1750926261976,5.09875621,145.43,145.41,10.0]
[1750926262152,5.56992074,145.42,145.41,10.0]
[1750926265156,5.56992074,145.43,145.41,10.0]
[1750926265353,5.56992074,145.43,145.42,10.0]
[1750926265773,5.10485487,145.45,145.44,10.0]
[1750926265974,5.56992074,145.45,145.44,10.0]
[1750926271191,31.38917801,145.47,145.45,10.0]
[1750926271375,5.56992074,145.46,145.45,10.0]
[1750926272208,10.67477561,145.46,145.45,10.0]
[1750926273069,26.0,145.48,145.46,10.0]
[1750926273070,5.10485487,145.47,145.46,10.0]
[1750926273277,36.67477561,145.48,145.46,10.0]
[1750926273591,5.56992074,145.47,145.46,10.0]
[1750926274396,10.67477561,145.47,145.46,10.0]
[1750926275924,5.10485487,145.47,145.46,77.03931179]
[1750926276096,0.04,145.5,145.49,39.35624886]
[1750926276292,0.04,145.55,145.49,39.35624886]
[1750926276293,6.1401,145.67,145.55,28.64964886]
[1750926276473,5.56992074,145.63,145.55,78.09451682]
[1750926276890,5.56992074,145.62,145.55,84.96500806]
[1750926277192,5.56992074,145.6,145.55,74.6918696]
[1750926277991,0.04,145.64,145.55,74.6918696]
[1750926277992,26.04,145.64,145.55,74.6918696]
[1750926278194,5.56992074,145.62,145.55,74.6918696]
[1750926278411,5.56992074,145.61,145.55,74.6918696]
[1750926278591,26.04,145.64,145.55,74.6918696]
[1750926278772,5.56992074,145.62,145.55,74.6918696]
[1750926279191,5.56992074,145.61,145.55,74.6918696]
[1750926279401,26.04,145.64,145.55,74.6918696]
[1750926279702,5.56992074,145.62,145.55,74.6918696]
[1750926279910,26.04,145.64,145.55,74.6918696]
[1750926280408,5.56992074,145.62,145.55,74.6918696]
[1750926281501,5.56992074,145.62,145.55,163.3918696]
[1750926281911,5.56992074,145.61,145.55,163.3918696]
[1750926284604,26.04,145.64,145.55,163.3918696]
[1750926284789,31.60992074,145.64,145.55,163.3918696]
[1750926285185,5.60992074,145.64,145.55,163.3918696]
[1750926286079,5.60992074,145.64,145.55,170.26236084]
[1750926286283,0.04,145.62,145.55,170.26236084]
[1750926288498,5.60992074,145.62,145.55,163.3918696]
[1750926289004,0.04,145.62,145.55,163.3918696]
[1750926289504,5.60992074,145.62,145.55,163.3918696]
[1750926290696,5.60992074,145.62,145.55,74.6918696]
[1750926291502,0.04,145.62,145.55,74.6918696]
[1750926292893,5.60992074,145.62,145.55,74.6918696]
[1750926295396,5.60992074,145.62,145.55,81.56236084]
[1750926296414,5.60992074,145.62,145.55,170.26236084]
[1750926297813,5.60992074,145.62,145.55,164.6924401]
[1750926297998,5.60992074,145.62,145.55,170.26236084]
[1750926298194,5.60992074,145.62,145.55,163.3918696]
[1750926298515,5.60992074,145.62,145.55,157.3795696]
[1750926300010,5.56992074,145.61,145.55,68.6795696]
[1750926300311,5.56992074,145.6,145.55,68.6795696]
[1750926300498,0.04,145.62,145.55,68.6795696]
[1750926300499,5.56992074,145.61,145.55,68.6795696]
[1750926301815,5.56992074,145.61,145.55,63.10964886]
[1750926302115,0.04,145.62,145.55,50.02992074]
[1750926302310,5.56992074,145.6,145.55,50.02992074]
[1750926303118,0.28432314,145.61,145.55,44.46]
[1750926303424,5.60992074,145.56,145.55,10.0]
[1750926303715,5.60992074,145.56,145.55,38.26]
[1750926303911,0.04,145.56,145.55,38.26]
[1750926306720,5.60992074,145.56,145.55,38.26]
[1750926310024,5.60992074,145.56,145.55,10.0]
[1750926310209,5.60992074,145.56,145.55,38.26]
[1750926310921,0.04,145.56,145.55,38.26]
[1750926311306,5.60992074,145.56,145.55,38.26]
[1750926311529,0.04,145.56,145.55,38.26]
[1750926312932,5.60992074,145.56,145.55,38.26]
[1750926314209,0.04,145.56,145.55,38.26]
[1750926316118,0.04,145.56,145.55,62.4795696]
[1750926316321,0.04,145.56,145.55,38.26]
[1750926318819,26.0,145.54,145.52,10.0]
[1750926319037,0.28432314,145.53,145.52,10.0]
[1750926319238,10.94618702,145.53,145.51,10.0]
[1750926319444,10.66186388,145.52,145.51,10.0]
[1750926319917,5.56992074,145.52,145.51,10.0]
[1750926320116,10.66186388,145.52,145.51,10.0]
[1750926320336,5.56992074,145.52,145.51,10.0]
[1750926321838,5.09194314,145.53,145.51,10.0]
[1750926322033,5.56992074,145.52,145.51,10.0]
[1750926323933,5.56992074,145.52,145.5,10.0]
[1750926324130,5.56992074,145.51,145.49,10.02]
[1750926324309,5.56992074,145.5,145.49,0.02]
[1750926324512,5.85424388,145.5,145.49,0.02]
[1750926326123,5.56992074,145.5,145.49,0.02]
[1750926328331,5.85424388,145.5,145.49,0.02]
[1750926332851,31.85424388,145.5,145.49,0.02]
[1750926337744,31.85424388,145.5,145.49,10.02]
[1750926343746,5.56992074,145.5,145.49,10.02]
[1750926344442,5.56992074,145.51,145.5,10.0]
[1750926347149,5.85424388,145.51,145.5,10.0]
[1750926348302,26.0,145.52,145.5,10.0]
[1750926348452,5.56992074,145.51,145.5,10.0]
[1750926355990,6.68050057,145.55,145.52,10.0]
[1750926356178,5.13910057,145.56,145.54,10.0]
[1750926356474,0.04,145.56,145.55,10.0]
[1750926357576,5.60992074,145.56,145.55,10.0]
[1750926360157,0.04,145.56,145.55,10.0]
[1750926361285,0.04,145.56,145.55,15.56992074]
[1750926361470,0.04,145.56,145.55,16.14]
[1750926364899,5.60992074,145.56,145.55,10.0]
[1750926365098,5.60992074,145.56,145.54,10.0]
[1750926365099,5.89424388,145.56,145.54,10.0]
[1750926365273,26.32432314,145.56,145.55,10.0]
[1750926365467,31.89424388,145.56,145.55,10.0]
[1750926365668,0.28432314,145.55,145.54,10.0]
[1750926365970,5.85424388,145.55,145.54,10.0]
[1750926368790,26.04,145.56,145.54,10.0]
[1750926368995,0.32432314,145.56,145.55,10.0]
[1750926370170,5.89424388,145.56,145.55,10.0]
[1750926373170,5.89424388,145.56,145.54,10.0]
[1750926373373,0.32432314,145.56,145.55,10.0]
[1750926373568,5.89424388,145.56,145.55,10.0]
[1750926373796,0.28432314,145.55,145.52,10.0]
[1750926373981,11.42416462,145.53,145.51,10.0]
[1750926374180,11.42416462,145.52,145.51,10.0]
[1750926375701,11.42416462,145.52,145.49,0.02]
[1750926375911,5.85424388,145.52,145.51,10.0]
[1750926376081,11.42416462,145.52,145.51,10.0]
[1750926379822,11.42416462,145.52,145.49,10.02]
[1750926380022,11.42416462,145.52,145.51,10.0]
[1750926384226,11.42416462,145.52,145.49,10.02]
[1750926384432,5.85424388,145.52,145.51,10.0]
[1750926384609,11.42416462,145.52,145.51,10.0]
[1750926396541,30.07381348,145.52,145.49,10.02]
[1750926396745,26.0,145.49,145.48,5.592]
[1750926396927,31.56992074,145.49,145.48,5.592]
[1750926398344,0.28432314,145.48,145.47,5.592]
[1750926398542,5.85424388,145.48,145.47,5.592]
[1750926402126,5.85424388,145.48,145.45,0.02]
[1750926402345,5.85424388,145.46,145.45,5.612]
[1750926406252,5.85424388,145.46,145.45,0.02]
[1750926407767,5.85424388,145.46,145.45,5.612]
[1750926408755,5.85424388,145.46,145.45,0.02]
[1750926409129,5.85424388,145.46,145.45,5.612]
[1750926410442,0.28432314,145.46,145.45,5.612]
[1750926410660,5.85424388,145.46,145.45,5.612]
[1750926413136,5.85424388,145.46,145.45,0.02]
[1750926413337,5.85424388,145.46,145.45,5.612]
[1750926414154,5.56992074,145.46,145.45,5.612]
[1750926416441,5.56992074,145.46,145.45,0.02]
[1750926416650,5.56992074,145.46,145.45,5.612]
[1750926421038,5.56992074,145.48,145.46,5.592]
[1750926421253,6.87125116,145.54,145.47,5.592]
[1750926421254,5.11149445,145.51,145.47,5.592]
[1750926421540,5.56992074,145.49,145.48,5.592]
[1750926425769,0.28432314,145.48,145.47,5.592]
[1750926425948,5.85424388,145.48,145.47,5.592]
[1750926426773,5.85424388,145.48,145.46,5.592]
[1750926426947,5.85424388,145.47,145.46,5.592]
[1750926429668,0.28432314,145.46,145.45,5.612]
[1750926429847,5.85424388,145.46,145.45,5.612]
[1750926437456,5.56992074,145.46,145.45,5.612]
[1750926440180,5.85424388,145.46,145.45,5.612]
[1750926440480,10.96573833,145.46,145.45,5.612]
[1750926440650,5.85424388,145.46,145.45,5.612]
[1750926441105,10.96573833,145.46,145.45,5.612]
[1750926441264,5.85424388,145.46,145.45,5.612]
[1750926441449,10.96573833,145.46,145.45,0.02]
[1750926441653,36.96573833,145.46,145.45,0.02]
[1750926444085,31.39581759,145.46,145.45,0.02]
[1750926444251,36.96573833,145.46,145.45,0.02]
[1750926450177,31.85424388,145.46,145.45,0.02]
[1750926450382,36.97265003,145.46,145.45,0.02]
[1750926452582,55.62229889,145.46,145.45,0.02]
[1750926453486,62.49704108,145.46,145.45,0.02]
[1750926455360,192.974172,145.45,145.43,0.02]
[1750926455565,26.28432314,145.42,145.41,0.02]
[1750926455792,55.62229889,145.42,145.41,0.02]
[1750926456458,0.28432314,145.41,145.39,0.02]
[1750926456686,0.28432314,145.41,145.39,5.612]
[1750926456687,10.68832689,145.4,145.39,5.612]
[1750926457188,5.56992074,145.4,145.39,0.02]
[1750926457397,5.85424388,145.4,145.39,0.02]
[1750926457575,5.85424388,145.4,145.39,5.612]
[1750926458085,5.85424388,145.4,145.39,0.02]
[1750926460112,5.85424388,145.4,145.39,5.612]
[1750926461088,5.85424388,145.4,145.39,0.02]
[1750926461280,5.85424388,145.4,145.39,5.612]
[1750926462587,5.56992074,145.4,145.39,5.612]
[1750926473312,5.85424388,145.4,145.39,5.612]
[1750926477916,5.85424388,145.4,145.37,0.02]
[1750926478090,26.28432314,145.38,145.37,0.02]
[1750926478292,26.28432314,145.38,145.37,5.612]
[1750926478513,31.85424388,145.38,145.37,5.612]
[1750926479712,26.0,145.38,145.37,5.612]
[1750926480016,31.56992074,145.38,145.37,5.612]
[1750926481021,24.2195696,145.44,145.4,5.592]
[1750926481218,5.56992074,145.41,145.4,5.592]
[1750926481408,31.56992074,145.41,145.4,5.592]
[1750926482132,31.85424388,145.41,145.4,5.592]
[1750926482625,0.28432314,145.4,145.39,5.592]
[1750926482795,5.85424388,145.4,145.39,5.592]
[1750926484202,26.0,145.38,145.37,0.02]
[1750926484525,31.56992074,145.38,145.37,5.612]
[1750926486609,31.85424388,145.38,145.37,5.612]
[1750926487611,5.85424388,145.38,145.37,5.612]
[1750926490817,5.56992074,145.38,145.37,5.612]
[1750926491411,5.56992074,145.39,145.38,5.592]
[1750926491620,31.56992074,145.39,145.38,5.592]
[1750926491939,5.10235324,145.42,145.39,5.592]
[1750926492112,5.56992074,145.4,145.39,5.592]
[1750926492312,5.10235324,145.43,145.39,5.592]
[1750926492512,5.56992074,145.4,145.39,5.592]
[1750926494233,5.56992074,145.41,145.4,5.592]
[1750926494942,5.85424388,145.41,145.4,5.592]
[1750926497317,10.96503014,145.41,145.39,5.592]
[1750926497523,5.56992074,145.4,145.39,5.592]
[1750926498039,5.85424388,145.4,145.38,5.592]
[1750926498219,10.96503014,145.39,145.38,5.592]
[1750926498431,5.85424388,145.39,145.38,5.592]
[1750926498738,10.96503014,145.39,145.38,5.592]
[1750926498946,5.85424388,145.39,145.38,5.592]
[1750926499254,10.96503014,145.39,145.38,5.592]
[1750926499551,5.85424388,145.39,145.38,5.592]
[1750926499849,10.96503014,145.39,145.38,5.592]
[1750926500134,5.85424388,145.39,145.38,5.592]
[1750926500351,10.96503014,145.39,145.38,5.592]
[1750926512545,10.680707,145.39,145.38,5.592]
[1750926512751,5.56992074,145.39,145.38,5.592]
[1750926512940,10.680707,145.39,145.38,5.592]
[1750926513144,5.56992074,145.39,145.38,5.592]
[1750926513447,10.680707,145.39,145.38,5.592]
[1750926513656,5.56992074,145.39,145.38,5.592]
[1750926513827,5.11078626,145.39,145.38,5.592]
[1750926514437,5.11078626,145.4,145.38,5.592]
[1750926514651,5.11078626,145.39,145.38,5.592]
[1750926515556,5.56992074,145.4,145.38,5.592]
[1750926515742,5.56992074,145.4,145.39,5.592]
[1750926515931,10.69124411,145.4,145.39,5.592]
[1750926527171,10.97556725,145.4,145.39,5.592]
[1750926536376,8.97213207,145.4,145.39,5.592]
[1750926536577,5.12132337,145.4,145.39,5.592]
[1750926538176,8.68780893,145.4,145.39,5.592]
[1750926538382,10.69310992,145.4,145.39,5.592]
[1750926542383,10.97743306,145.4,145.38,5.592]
[1750926542557,10.97743306,145.39,145.38,5.592]
[1750926542755,10.97743306,145.39,145.37,5.612]
[1750926543078,10.97743306,145.38,145.37,5.612]
[1750926544086,10.98233722,145.38,145.37,5.612]
[1750926547382,5.12622753,145.38,145.37,5.612]
[1750926549292,10.69801408,145.38,145.37,5.612]
[1750926553670,5.12622753,145.38,145.37,5.612]
[1750926553998,10.69801408,145.38,145.37,5.612]
[1750926554499,5.57178655,145.38,145.37,5.612]
[1750926554902,10.69801408,145.38,145.37,5.612]
[1750926555072,5.57178655,145.38,145.37,5.612]
[1750926555475,10.69801408,145.38,145.37,5.612]
[1750926555780,5.57178655,145.38,145.37,5.612]
[1750926556186,10.69801408,145.38,145.37,5.612]
[1750926556387,5.57178655,145.38,145.37,5.612]
[1750926556893,10.69801408,145.38,145.37,5.612]
[1750926557095,5.57178655,145.38,145.37,5.612]
[1750926557606,10.98233722,145.38,145.37,5.612]
[1750926557781,5.85610969,145.38,145.37,5.612]
[1750926558176,10.98233722,145.38,145.37,5.612]
[1750926558376,5.85610969,145.38,145.37,5.612]
[1750926558894,10.98233722,145.38,145.37,5.612]
[1750926559087,5.85610969,145.38,145.37,5.612]
[1750926559486,10.98233722,145.38,145.37,5.612]
[1750926559669,5.85610969,145.38,145.37,5.612]
[1750926560098,10.98233722,145.38,145.37,5.612]
[1750926560301,0.28432314,145.38,145.37,5.612]
[1750926560505,3.85172384,145.38,145.37,5.612]
[1750926560800,8.97795137,145.38,145.37,5.612]
[1750926560994,5.12622753,145.4,145.37,5.612]
[1750926561221,26.28432314,145.4,145.39,5.592]
[1750926561408,31.40695233,145.4,145.39,5.592]
[1750926561595,5.12262919,145.4,145.39,5.592]
[1750926561780,5.12262919,145.41,145.39,5.592]
[1750926561982,31.40785338,145.42,145.4,5.592]
[1750926562181,5.12353024,145.41,145.4,5.592]
[1750926563283,29.70956227,145.42,145.4,5.592]
[1750926563484,29.85172384,145.42,145.41,5.592]
[1750926563694,34.97313026,145.42,145.41,5.592]
[1750926564297,31.8553164,145.42,145.41,5.592]
[1750926564694,36.97672282,145.42,145.41,5.592]
[1750926564997,31.8553164,145.42,145.41,5.592]
[1750926565194,36.97672282,145.42,145.41,5.592]
[1750926566214,31.8553164,145.42,145.41,5.592]
[1750926566415,36.97672282,145.42,145.41,5.592]
[1750926566787,31.8553164,145.42,145.41,5.592]
[1750926566988,36.97672282,145.42,145.41,5.592]
[1750926567205,31.8553164,145.42,145.41,5.592]
[1750926567389,36.97672282,145.42,145.41,5.592]
[1750926567589,31.8553164,145.42,145.41,5.592]
[1750926567788,36.97672282,145.42,145.41,5.592]
[1750926568001,31.8553164,145.42,145.41,5.592]
[1750926568302,0.14216157,145.41,145.4,5.592]
[1750926568476,10.97672282,145.41,145.4,5.592]
[1750926569912,10.97672282,145.41,145.39,5.592]
[1750926570090,26.28432314,145.41,145.4,5.592]
[1750926570289,31.40214089,145.41,145.4,5.592]
[1750926571198,36.97313415,145.41,145.4,5.592]
[1750926571508,0.14216157,145.4,145.39,5.592]
[1750926571716,10.83097258,145.4,145.38,5.592]
[1750926572022,5.57099326,145.39,145.38,5.592]
[1750926576611,5.8553164,145.39,145.37,5.612]
[1750926576816,5.57099326,145.38,145.37,5.612]
[1750926578493,10.97313415,145.38,145.37,5.612]
[1750926578686,5.8553164,145.38,145.37,0.02]
[1750926578922,5.8553164,145.38,145.37,5.612]
[1750926579129,10.97313415,145.38,145.37,5.612]
[1750926579303,5.8553164,145.38,145.37,0.02]
[1750926579827,10.97313415,145.38,145.37,0.02]
[1750926580028,5.8553164,145.38,145.37,0.02]
[1750926580515,10.97313415,145.38,145.37,0.02]
[1750926580721,5.8553164,145.38,145.37,0.02]
[1750926581095,10.97313415,145.38,145.37,0.02]
[1750926581303,5.8553164,145.38,145.37,0.02]
[1750926581597,31.8553164,145.38,145.37,0.02]
[1750926581918,36.97313415,145.38,145.37,0.02]
[1750926582296,31.8553164,145.38,145.37,0.02]
[1750926582596,36.97313415,145.38,145.37,0.02]
[1750926583019,31.8553164,145.38,145.37,0.02]
[1750926583205,36.97313415,145.38,145.37,0.02]
[1750926583610,31.8553164,145.38,145.37,0.02]
[1750926583908,36.97313415,145.38,145.37,0.02]
[1750926584630,31.8553164,145.38,145.37,0.02]
[1750926584810,36.97313415,145.38,145.37,0.02]
[1750926585009,31.8553164,145.38,145.37,0.02]
[1750926585207,36.97313415,145.38,145.37,0.02]
[1750926585429,26.28432314,145.38,145.37,0.02]
[1750926585631,36.97313415,145.38,145.37,0.02]
[1750926585995,31.8553164,145.38,145.37,0.02]
[1750926586218,36.97313415,145.38,145.37,0.02]
[1750926586428,34.97039687,145.38,145.37,0.02]
[1750926586596,29.85257912,145.38,145.37,0.02]
[1750926586897,34.97039687,145.38,145.37,0.02]
[1750926587195,29.85257912,145.38,145.37,0.02]
[1750926587390,34.97039687,145.38,145.37,0.02]
[1750926587696,29.85257912,145.38,145.37,0.02]
[1750926587993,34.97039687,145.38,145.37,0.02]
[1750926588195,29.85257912,145.38,145.37,0.02]
[1750926588410,34.97039687,145.38,145.37,0.02]
[1750926588924,29.85257912,145.38,145.37,0.02]
[1750926589126,34.97039687,145.38,145.37,0.02]
[1750926589314,29.85257912,145.38,145.37,0.02]
[1750926589617,34.97039687,145.38,145.37,0.02]
[1750926590012,29.85257912,145.38,145.37,0.02]
[1750926590308,34.97039687,145.38,145.37,0.02]
[1750926591248,29.85257912,145.38,145.37,0.02]
[1750926591404,34.97039687,145.38,145.37,0.02]
[1750926592112,29.85257912,145.38,145.37,0.02]
[1750926592322,34.97039687,145.38,145.37,0.02]
[1750926592722,29.85257912,145.38,145.37,0.02]
[1750926593018,34.97039687,145.38,145.37,0.02]
[1750926593718,29.85257912,145.38,145.37,0.02]